fUST/lending_fUST_20241127
["ID","MTS","AMOUNT","RATE_DAILY","PERIOD"]
[343493738,1732667446444,-215.818954,0.00030866,7]
[343493740,1732667446455,-215.818954,0.00030866,7]
[343493742,1732667446464,-215.818954,0.00030866,7]
[343493744,1732667446475,-215.818954,0.00030866,7]
[343493746,1732667446484,-215.818946,0.00030866,7]
[343493748,1732667446494,-151.0,0.00030868,7]
[343493750,1732667446504,-155.148744,0.00030868,7]
[343493752,1732667446515,-151.0,0.00030868,7]
[343493754,1732667446527,-151.0,0.00030868,7]
[343493756,1732667446536,-263.721029,0.00030868,7]
[343493758,1732667446545,-263.721029,0.00030868,7]
[343493760,1732667446555,-263.721029,0.00030868,7]
[343493762,1732667446564,-263.721029,0.00030868,7]
[343493764,1732667446573,-263.721029,0.00030868,7]
[343493766,1732667446582,-263.721029,0.00030868,7]
[343493768,1732667446591,-263.721029,0.00030868,7]
[343493769,1732667446601,-263.721029,0.00030868,7]
[343493772,1732667446611,-263.721029,0.00030868,7]
[343493774,1732667446621,-263.721029,0.00030868,7]
[343493775,1732667446630,-263.721029,0.00030868,7]
[343493778,1732667446641,-263.721029,0.00030868,7]
[343493779,1732667446650,-263.721029,0.00030868,7]
[343493781,1732667446659,-263.721029,0.00030868,7]
[343493783,1732667446668,-263.721029,0.00030868,7]
[343493785,1732667446677,-263.721029,0.00030868,7]
[343493787,1732667446686,-151.0,0.00030868,7]
[343493789,1732667446695,-151.0,0.00030868,7]
[343493791,1732667446705,-151.0,0.00030868,7]
[343493793,1732667446716,-151.0,0.00030868,7]
[343493795,1732667446725,-151.0,0.00030868,7]
[343493797,1732667446735,-151.0,0.00030868,7]
[343493799,1732667446744,-151.0,0.00030868,7]
[343493801,1732667446754,-236.563874,0.00030868,7]
[343493803,1732667446764,-151.0,0.00030868,7]
[343493805,1732667446777,-151.0,0.00030868,7]
[343493807,1732667446787,-151.0,0.00030868,7]
[343493809,1732667446799,-151.0,0.00030868,7]
[343493811,1732667446808,-151.0,0.00030868,7]
[343493813,1732667446817,-151.0,0.00030868,7]
[343493815,1732667446828,-151.0,0.00030868,7]
[343493817,1732667446837,-151.0,0.00030868,7]
[343493819,1732667446847,-151.0,0.00030868,7]
[343493821,1732667446858,-151.0,0.00030868,7]
[343493823,1732667446867,-151.0,0.00030868,7]
[343493825,1732667446877,-151.0,0.00030868,7]
[343493827,1732667446887,-151.0,0.00030868,7]
[343493829,1732667446896,-151.0,0.00030868,7]
[343493831,1732667446905,-151.0,0.00030868,7]
[343493832,1732667446914,-151.0,0.00030868,7]
[343493833,1732667446924,-232.171282,0.00030868,7]
[343493834,1732667446933,-151.0,0.00030868,7]
[343493835,1732667446943,-151.0,0.00030868,7]
[343493836,1732667446953,-151.0,0.00030868,7]
[343493837,1732667446962,-151.0,0.00030868,7]
[343493838,1732667446971,-151.0,0.00030868,7]
[343493839,1732667446981,-209.33079,0.00030868,7]
[343493840,1732667446992,-150.15,0.00030871,10]
[343493841,1732667447002,-150.14,0.00030871,10]
[343493842,1732667447011,-500.0,0.00030871,10]
[343493843,1732667447024,-207.10846405,0.00030871,10]
[343493844,1732667447034,-500.0,0.00030873,5]
[343493845,1732667447044,-1114.61115392,0.00030873,14]
[343493846,1732667447053,-151.0,0.00030873,7]
[343493847,1732667447063,-255.28939,0.00030873,7]
[343493848,1732667447073,-255.28939,0.00030873,7]
[343493849,1732667447084,-255.28939,0.00030873,7]
[343493850,1732667447093,-255.28939,0.00030873,7]
[343493851,1732667447103,-255.28939,0.00030873,7]
[343493852,1732667447113,-255.28939,0.00030873,7]
[343493853,1732667447124,-255.28939,0.00030873,7]
[343493854,1732667447133,-255.28939,0.00030873,7]
[343493855,1732667447143,-255.28939,0.00030873,7]
[343493856,1732667447153,-255.28939,0.00030873,7]
[343493857,1732667447163,-255.28939,0.00030873,7]
[343493858,1732667447173,-255.28939,0.00030873,7]
[343493859,1732667447182,-255.28939,0.00030873,7]
[343493860,1732667447192,-255.28939,0.00030873,7]
[343493861,1732667447201,-255.28939,0.00030873,7]
[343493862,1732667447211,-255.28939,0.00030873,7]
[343493863,1732667447220,-255.28939,0.00030873,7]
[343493864,1732667447230,-255.28939,0.00030873,7]
[343493865,1732667447239,-255.28939,0.00030873,7]
[343493866,1732667447249,-255.289395,0.00030873,7]
[343493867,1732667447258,-151.0,0.00030873,7]
[343493868,1732667447269,-151.0,0.00030873,7]
[343493869,1732667447278,-151.0,0.00030873,7]
[343493870,1732667447287,-151.0,0.00030873,7]
[343493871,1732667447297,-151.0,0.00030873,7]
[343493872,1732667447306,-199.10996,0.00030873,7]
[343493874,1732667447315,-293.084184,0.00030873,7]
[343493876,1732667447325,-151.0,0.00030873,7]
[343493878,1732667447334,-151.0,0.00030873,7]
[343493880,1732667447343,-151.0,0.00030873,7]
[343493882,1732667447353,-151.0,0.00030873,7]
[343493884,1732667447362,-151.0,0.00030873,7]
[343493886,1732667447371,-151.0,0.00030873,7]
[343493888,1732667447381,-151.0,0.00030873,7]
[343493890,1732667447390,-151.0,0.00030873,7]
[343493892,1732667447400,-151.0,0.00030873,7]
[343493893,1732667447409,-151.0,0.00030873,7]
[343493894,1732667447418,-213.962436,0.00030873,7]
[343493895,1732667447428,-256.130494,0.00030873,7]
[343493896,1732667447441,-151.0,0.00030873,7]
[343493897,1732667447450,-151.0,0.00030873,7]
[343493898,1732667447460,-151.0,0.00030873,7]
[343493899,1732667447471,-151.0,0.00030873,7]
[343493900,1732667447480,-151.0,0.00030873,7]
[343493901,1732667447490,-151.0,0.00030873,7]
[343493902,1732667447499,-151.0,0.00030873,7]
[343493903,1732667447511,-151.0,0.00030873,7]
[343493904,1732667447524,-151.0,0.00030873,7]
[343493905,1732667447534,-151.0,0.00030873,7]
[343493906,1732667447544,-216.442888,0.00030873,7]
[343493907,1732667447554,-151.0,0.00030874,7]
[343493908,1732667447564,-151.0,0.00030874,7]
[343493909,1732667447573,-199.020468,0.00030874,7]
[343493910,1732667447584,-779.312891,0.00030874,7]
[343493912,1732667447594,-779.312891,0.00030874,7]
[343493914,1732667447604,-779.312891,0.00030874,7]
[343493916,1732667447613,-779.312891,0.00030874,7]
[343493918,1732667447623,-779.312891,0.00030874,7]
[343493920,1732667447632,-779.312891,0.00030874,7]
[343493921,1732667447642,-779.312891,0.00030874,7]
[343493923,1732667447652,-779.312891,0.00030874,7]
[343493925,1732667447661,-779.312891,0.00030874,7]
[343493926,1732667447671,-779.312891,0.00030874,7]
[343493927,1732667447681,-779.312891,0.00030874,7]
[343493929,1732667447691,-779.312891,0.00030874,7]
[343493931,1732667447700,-779.312891,0.00030874,7]
[343493933,1732667447711,-779.312891,0.00030874,7]
[343493935,1732667447720,-779.312891,0.00030874,7]
[343493936,1732667447729,-779.312891,0.00030874,7]
[343493938,1732667447739,-779.312891,0.00030874,7]
[343493940,1732667447748,-779.312887,0.00030874,7]
[343493942,1732667447758,-151.0,0.00030874,7]
[343493944,1732667447769,-151.0,0.00030874,7]
[343493946,1732667447778,-151.0,0.00030874,7]
[343493947,1732667447788,-151.0,0.00030874,7]
[343493949,1732667447798,-151.0,0.00030874,7]
[343493950,1732667447808,-151.0,0.00030874,7]
[343493951,1732667447817,-244.0526,0.00030874,7]
[343493952,1732667447826,-299.43702,0.00030874,7]
[343493953,1732667447836,-151.0,0.00030874,7]
[343493954,1732667447846,-151.0,0.00030874,7]
[343493955,1732667447856,-151.0,0.00030874,7]
[343493956,1732667447866,-151.0,0.00030874,7]
[343493957,1732667447876,-151.0,0.00030874,7]
[343493958,1732667447886,-151.0,0.00030874,7]
[343493959,1732667447896,-151.0,0.00030874,7]
[343493960,1732667447906,-151.0,0.00030874,7]
[343493961,1732667447915,-151.0,0.00030874,7]
[343493963,1732667447925,-151.0,0.00030874,7]
[343493965,1732667447934,-151.0,0.00030874,7]
[343493967,1732667447945,-151.0,0.00030874,7]
[343493969,1732667447954,-151.0,0.00030874,7]
[343493971,1732667447965,-151.0,0.00030874,7]
[343493973,1732667447974,-151.0,0.00030874,7]
[343493975,1732667447984,-151.0,0.00030874,7]
[343493977,1732667447993,-151.0,0.00030874,7]
[343493979,1732667448004,-151.0,0.00030874,7]
[343493981,1732667448013,-206.863888,0.00030874,7]
[343493982,1732667448026,-151.0,0.00030874,7]
[343493984,1732667448036,-212.89352,0.00030874,7]
[343493986,1732667448045,-170.95218,0.00030874,7]
[343493987,1732667448055,-170.95218,0.00030874,7]
[343493989,1732667448066,-170.95218,0.00030874,7]
[343493990,1732667448076,-170.95218,0.00030874,7]
[343493991,1732667448086,-170.95218,0.00030874,7]
[343493992,1732667448096,-170.95218,0.00030874,7]
[343493993,1732667448106,-170.95218,0.00030874,7]
[343493994,1732667448116,-170.95218,0.00030874,7]
[343493995,1732667448127,-170.95218,0.00030874,7]
[343493996,1732667448136,-170.95218,0.00030874,7]
[343493997,1732667448147,-170.95218,0.00030874,7]
[343493998,1732667448157,-170.95218,0.00030874,7]
[343493999,1732667448167,-170.95218,0.00030874,7]
[343494000,1732667448177,-170.95218,0.00030874,7]
[343494001,1732667448187,-170.95218,0.00030874,7]
[343494002,1732667448197,-170.95218,0.00030874,7]
[343494003,1732667448208,-170.95218,0.00030874,7]
[343494004,1732667448218,-170.952184,0.00030874,7]
[343494005,1732667448228,-961137.3035249,0.00030874,10]
[343494006,1732667448279,-245403.55800081,0.00030874,10]
[343494007,1732667448315,-90483.37614466,0.00030874,10]
[343494010,1732667637424,161.46458,0.00013973,2]
[343494011,1732667637636,161.46458,0.00020807,2]
[343494016,1732668207097,230.0,0.000296,120]
[343494020,1732668348735,161.795048,0.00013973,2]
[343494021,1732668348947,161.795048,0.00020807,2]
[343494023,1732668440104,-174.46221684,0.00024,5]
[343494024,1732668440129,-312.79067075,0.00024853,2]
[343494025,1732668440149,-3737.45116664,0.00024953,2]
[343494026,1732668440170,-550.0,0.00025,5]
[343494027,1732668440193,-300.0,0.00025963,2]
[343494028,1732668440215,-300.0,0.00025963,2]
[343494029,1732668440237,-1124.90720559,0.00025963,2]
[343494030,1732668446141,-4413.17368968,0.00025963,2]
[343494064,1732668632099,-300.0,0.00025963,2]
[343494065,1732668632110,-300.0,0.00025963,2]
[343494066,1732668632119,-514.0,0.00025963,2]
[343494067,1732668632129,-538.20775846,0.00025964,2]
[343494068,1732668632142,-3345.767573,0.00025964,2]
[343494069,1732668632154,-556.86521642,0.00025964,2]
[343494070,1732668632166,-335.5000105,0.00025964,2]
[343494071,1732668632177,-633.90707799,0.00025964,2]
[343494101,1732668638245,-19489.75236363,0.00025964,2]
[343494103,1732668638255,-311.146907,0.00026218,2]
[343494105,1732668638265,-660.0,0.00026384,2]
[343494107,1732668638274,-164.833155,0.00027035,2]
[343494109,1732668638283,-203.999474,0.0002733,2]
[343494111,1732668638293,-500.0,0.00027397,3]
[343494113,1732668638306,-161.795048,0.00027641,2]
[343494115,1732668638315,-150.63265387,0.00027691,2]
[343494117,1732668638325,-156.38,0.00027791,17]
[343494119,1732668638334,-500.0,0.00027791,3]
[343494121,1732668638344,-500.0,0.00027791,3]
[343494123,1732668638353,-500.0,0.00027791,3]
[343494125,1732668638363,-500.0,0.00027791,3]
[343494127,1732668638372,-500.0,0.00027791,3]
[343494128,1732668638382,-500.0,0.00027791,3]
[343494130,1732668638392,-456.21476196,0.00027791,3]
[343494271,1732668640086,-43.78523804,0.00027791,3]
[343494273,1732668640096,-500.0,0.00027791,3]
[343494275,1732668640105,-235.80968196,0.00027791,3]
[343494277,1732668640117,-264.19031804,0.00027791,3]
[343494279,1732668640126,-12.20565996,0.00027791,3]
[343494281,1732668640138,-487.79434004,0.00027791,3]
[343494283,1732668640148,-306.59883718,0.00027791,3]
[343494285,1732668640158,-61.60682778,0.00027791,3]
[343494287,1732668640169,-438.39317222,0.00027791,3]
[343494289,1732668640179,-500.0,0.00027791,3]
[343494291,1732668640189,-500.0,0.00027791,3]
[343494293,1732668640199,-203.999474,0.00028015,2]
[343494295,1732668640209,-420.0,0.00028099,2]
[343494297,1732668640219,-500.0,0.00028368,3]
[343494299,1732668640228,-604.48,0.00028369,2]
[343494301,1732668640238,-500.0,0.00028369,3]
[343494303,1732668640248,-420.0,0.0002856,2]
[343494305,1732668640258,-203.999474,0.000287,2]
[343494307,1732668640267,-611.6068908,0.00028817,5]
[343494309,1732668640277,-150.63265387,0.00029231,2]
[343494311,1732668640287,-500.0,0.00029447,3]
[343494313,1732668640296,-153.72,0.000295,31]
[343494315,1732668640311,-153.72,0.000295,31]
[343494317,1732668640321,-500.0,0.00029672,3]
[343494320,1732668640330,-318.05345512,0.00029672,3]
[343494321,1732668640340,-500.0,0.00029672,3]
[343494323,1732668640350,-588.87849072,0.00029672,2]
[343494325,1732668640359,-435.31,0.00029677,10]
[343494327,1732668640369,-362.76,0.00029677,10]
[343494329,1732668640379,-302.3,0.00029677,10]
[343494331,1732668640389,-251.91,0.00029677,10]
[343494333,1732668640399,-500.0,0.0002968,3]
[343494335,1732668640409,-500.0,0.00029684,3]
[343494337,1732668640418,-500.0,0.00029684,3]
[343494339,1732668640428,-500.0,0.00029684,3]
[343494341,1732668640437,-963.93702149,0.00029685,2]
[343494343,1732668640448,-500.0,0.00029686,3]
[343494345,1732668640457,-583.24706193,0.00029686,3]
[343494347,1732668640467,-500.0,0.00029686,3]
[343494349,1732668640476,-500.0,0.00029686,3]
[343494351,1732668640485,-500.0,0.00029686,3]
[343494353,1732668640494,-500.0,0.00029686,3]
[343494355,1732668640504,-500.0,0.00029686,3]
[343494357,1732668640513,-500.0,0.00029686,3]
[343494359,1732668640522,-500.0,0.00029686,3]
[343494361,1732668640532,-500.0,0.00029686,3]
[343494363,1732668640541,-500.0,0.00029686,3]
[343494365,1732668640552,-558.34687206,0.00029686,3]
[343494367,1732668640567,-500.0,0.00029686,3]
[343494369,1732668640576,-493.78174676,0.00029686,3]
[343494371,1732668640586,-186.87490753,0.00029686,2]
[343494373,1732668640595,-230.0,0.00029686,2]
[343494375,1732668640605,-619.76126811,0.00029686,2]
[343494377,1732668640614,-208.18632014,0.00029686,2]
[343494379,1732668640623,-456.08676382,0.00029686,2]
[343494381,1732668640633,-475.62400047,0.00029686,2]
[343494383,1732668640642,-48972.27620068,0.00029687,2]
[343494635,1732668643145,-500.0,0.0002756,5]
[343494637,1732668643156,-624.22143964,0.0002756,5]
[343494639,1732668643166,-173027.72379932,0.00029687,2]
[343494641,1732668643175,-300.0,0.000297,14]
[343494643,1732668643184,-1265.46,0.000298,2]
[343494645,1732668643193,-150.0,0.00029952,2]
[343494647,1732668643202,-531.0,0.00029952,2]
[343494649,1732668643211,-2378.0,0.00029952,2]
[343494651,1732668643221,-1105.0,0.00029952,2]
[343494653,1732668643230,-500.0,0.00029998,3]
[343494655,1732668643240,-500.0,0.00029999,3]
[343494657,1732668643250,-500.0,0.00029999,3]
[343494659,1732668643259,-500.0,0.00029999,3]
[343494661,1732668643269,-151.0,0.0003,7]
[343494663,1732668643278,-151.0,0.0003,7]
[343494665,1732668643287,-254.0,0.0003,2]
[343494667,1732668643299,-237.71066302,0.0003,10]
[343494669,1732668643309,-175.0,0.0003,2]
[343494671,1732668643318,-243.0,0.0003,2]
[343494673,1732668643327,-500.416,0.00030029,7]
[343494675,1732668643337,-583.82839,0.00030137,120]
[343494677,1732668643346,-254.0,0.00030411,2]
[343494679,1732668643356,-587.0,0.00030411,2]
[343494681,1732668643366,-298.448932,0.000305,15]
[343494683,1732668643375,-151.0,0.000306,12]
[343494685,1732668643385,-500.0,0.00030765,3]
[343494687,1732668643395,-500.0,0.00030766,3]
[343494689,1732668643405,-269.12,0.00030767,3]
[343494691,1732668643417,-151.0,0.00030768,7]
[343494693,1732668643427,-151.0,0.00030768,7]
[343494695,1732668643437,-150.63265387,0.00030771,2]
[343494697,1732668643447,-151.0,0.000308,12]
[343494699,1732668643456,-151.0,0.000308,19]
[343494701,1732668643465,-186.49716574,0.0003087,2]
[343494703,1732668643475,-381.60027995,0.0003087,2]
[343494705,1732668643485,-282.02707005,0.00030871,2]
[343494707,1732668643495,-588.87849072,0.00030871,7]
[343494709,1732668643504,-588.87849072,0.00030871,7]
[343494711,1732668643513,-304352.64629772,0.00030871,10]
[343494789,1732669077744,162.100958,0.00013973,2]
[343494790,1732669078151,162.100958,0.00020807,2]
[343494795,1732669627141,-235.7522136,0.00023899,2]
[343494796,1732669627166,-5000.0,0.0002414,2]
[343494797,1732669627188,-162.1042811,0.00024384,2]
[343494798,1732669627210,-579.90439,0.00024669,2]
[343494799,1732669627232,-193.321769,0.00024686,2]
[343494800,1732669627254,-300.0,0.00025208,2]
[343494801,1732669627280,-171.25529258,0.00025208,2]
[343494802,1732669646144,-128.74470742,0.00025208,2]
[343494803,1732669646167,-2213.0,0.0002521,2]
[343494804,1732669646190,-1704.33904167,0.00025211,2]
[343494805,1732669741255,162.176923,0.00013973,2]
[343494806,1732669741477,162.176923,0.00020807,2]
[343494830,1732669832278,-871.9524424,0.00024917,2]
[343494832,1732669832288,-303.351856,0.00025085,2]
[343494834,1732669832298,-300.0,0.0002521,2]
[343494836,1732669832307,-300.0,0.0002521,2]
[343494838,1732669832316,-3277.96339581,0.00025211,2]
[343494840,1732669832328,-2643.84554545,0.00025211,2]
[343494842,1732669832339,-3747.5557081,0.00025211,2]
[343494923,1732669838469,-13526.29630897,0.00025211,2]
[343494925,1732669838479,-156.381,0.00025499,10]
[343494927,1732669838489,-171.27164008,0.000255,2]
[343494928,1732669838498,-35000.0,0.000255,2]
[343494930,1732669838507,-189.62085443,0.0002552,2]
[343494932,1732669838517,-500.0,0.0002562,2]
[343494935,1732669838526,-500.0,0.00026467,2]
[343494936,1732669838536,-32773.07842338,0.000265,2]
[343494939,1732669838548,-2226.92157662,0.000265,2]
[343494941,1732669838558,-394.8808024,0.00026575,2]
[343494943,1732669838568,-583.91587119,0.00026725,2]
[343494945,1732669838580,-363.99174979,0.00026725,2]
[343494950,1732669838618,-188.06496296,0.00026725,2]
[343494952,1732669838628,-216.43313492,0.00026725,2]
[343494954,1732669838637,-500.45506807,0.00026725,2]
[343494956,1732669838646,-506.95754395,0.00026725,2]
[343494959,1732669838656,-500.0,0.00026725,2]
[343494961,1732669838665,-262.38503296,0.00026725,2]
[343494964,1732669838675,-174.94,0.00026755,10]
[343494966,1732669838684,-209.93,0.00026765,10]
[343494968,1732669838693,-505.29528961,0.00026775,2]
[343494970,1732669838703,-500.0,0.000268,2]
[343494972,1732669838714,-500.0,0.000268,2]
[343494974,1732669838723,-420.0,0.00027305,2]
[343494976,1732669838733,-500.0,0.00027397,3]
[343494978,1732669838742,-300.23100625,0.00027397,3]
[343494980,1732669838752,-520.42,0.00027397,3]
[343494982,1732669838761,-500.0,0.00027397,3]
[343494984,1732669838772,-500.0,0.00027397,3]
[343494986,1732669838783,-500.0,0.00027397,3]
[343494988,1732669838792,-340.42,0.00027397,3]
[343494990,1732669838802,-500.0,0.00027397,3]
[343494992,1732669838812,-500.0,0.00027397,3]
[343494994,1732669838821,-500.0,0.00027397,2]
[343494996,1732669838832,-162.176923,0.00027641,2]
[343494998,1732669838842,-420.0,0.00027731,2]
[343495000,1732669838851,-606.79097084,0.00027791,3]
[343495002,1732669838861,-2806.346493,0.000294,2]
[343495004,1732669838871,-153.73,0.000295,31]
[343495006,1732669838881,-153.73,0.000295,31]
[343495008,1732669838891,-587.0,0.00029574,2]
[343495010,1732669838901,-500.0,0.00029586,2]
[343495012,1732669838911,-43115.12510756,0.00029587,2]
[343495155,1732669840493,-505.914399,0.00029564,10]
[343495157,1732669840505,-368.815601,0.00029564,10]
[343495159,1732669840515,-2059.89091674,0.00029587,2]
[343495322,1732669843605,-9123.8615364,0.00029587,2]
[343495323,1732669843616,-125567.87506996,0.00029587,2]
[343495324,1732669843627,-1197.71,0.000298,2]
[343495325,1732669843637,-150.173,0.00029959,2]
[343495326,1732669843646,-340.591,0.00029959,2]
[343495327,1732669843656,-432.515,0.00029959,2]
[343495328,1732669843666,-240.0,0.0003,2]
[343495329,1732669843675,-175.0,0.0003,2]
[343495330,1732669843684,-236.0,0.0003,2]
[343495331,1732669843694,-5349.99,0.00030035,2]
[343495332,1732669843703,-437.871292,0.00030137,120]
[343495333,1732669843713,-302.5,0.00030282,30]
[343495334,1732669843728,-240.0,0.00030411,2]
[343495336,1732669843738,-273.0,0.00030504,2]
[343495337,1732669843748,-6239.97593054,0.0003067,2]
[343495339,1732669843758,-3595.49665811,0.0003068,30]
[343495340,1732669843767,-1450.43148296,0.0003087,2]
[343495341,1732669843777,-151.0,0.0003087,7]
[343495342,1732669843786,-151.0,0.0003087,7]
[343495343,1732669843795,-296.853474,0.0003087,7]
[343495344,1732669843804,-578.979188,0.0003087,7]
[343495345,1732669843813,-578.979188,0.0003087,7]
[343495346,1732669843823,-151.0,0.0003087,7]
[343495347,1732669843832,-151.0,0.0003087,7]
[343495348,1732669843841,-151.0,0.0003087,7]
[343495349,1732669843851,-151.0,0.0003087,7]
[343495350,1732669843860,-151.0,0.0003087,7]
[343495351,1732669843870,-578.979188,0.0003087,7]
[343495352,1732669843880,-578.979188,0.0003087,7]
[343495353,1732669843889,-151.0,0.0003087,7]
[343495354,1732669843899,-151.0,0.0003087,7]
[343495355,1732669843908,-151.0,0.0003087,7]
[343495356,1732669843929,-151.0,0.0003087,7]
[343495357,1732669843941,-267.12019596,0.00030871,2]
[343495358,1732669843950,-151.0,0.00030871,7]
[343495359,1732669843959,-151.0,0.00030871,7]
[343495360,1732669843973,-151.0,0.00030871,7]
[343495361,1732669843982,-151.0,0.00030871,7]
[343495362,1732669843992,-151.0,0.00030871,7]
[343495363,1732669844001,-151.0,0.00030871,7]
[343495364,1732669844010,-151.0,0.00030871,7]
[343495365,1732669844019,-151.0,0.00030871,7]
[343495366,1732669844028,-151.0,0.00030871,7]
[343495367,1732669844038,-195.18954,0.00030871,7]
[343495368,1732669844047,-282.02707006,0.00030872,2]
[343495369,1732669844058,-151.0,0.00030872,7]
[343495370,1732669844067,-151.0,0.00030872,7]
[343495371,1732669844079,-151.0,0.00030872,7]
[343495372,1732669844091,-151.0,0.00030872,7]
[343495373,1732669844100,-151.0,0.00030872,7]
[343495374,1732669844110,-299.884116,0.00030872,7]
[343495375,1732669844121,-673581.24771394,0.00030872,10]
[343495385,1732670411639,161.983559,0.00013973,2]
[343495386,1732670411878,161.983559,0.00021209,2]
[343495388,1732670827096,-164.833155,0.00024907,2]
[343495389,1732670827117,-3942.57431991,0.00024953,2]
[343495390,1732670827138,-300.0,0.00025528,2]
[343495391,1732670827158,-1506.71845413,0.00025529,2]
[343495392,1732670833103,-432.663701,0.00024699,2]
[343495393,1732670833126,-2194.28154587,0.00025529,2]
[343495394,1732670833148,-689.7429772,0.0002553,2]
[343495395,1732670842112,-618.3948137,0.0002553,2]
[343495396,1732670902824,499.90996127,0.0002,2]
[343495430,1732671032625,-722.59937,0.00025,2]
[343495437,1732671032689,-2632.88887826,0.00025,2]
[343495645,1732671038826,-1125.99540608,0.00025,2]
[343495646,1732671038839,-623.79972693,0.00025,2]
[343495647,1732671038850,-300.0,0.00025529,2]
[343495648,1732671038860,-4794.57754563,0.0002553,2]
[343495649,1732671038872,-15228.31949517,0.0002553,2]
[343495650,1732671038882,-6076.461413,0.00025844,2]
[343495651,1732671038892,-1946.48541116,0.00026,2]
[343495652,1732671038903,-40652.35016132,0.00026,30]
[343495660,1732671040531,-13233.74780065,0.00026,30]
[343495661,1732671040543,-24900.0,0.00026208,2]
[343495663,1732671040554,-152.0,0.00026348,2]
[343495665,1732671040564,-500.0,0.000265,2]
[343495668,1732671040574,-6076.461413,0.00026528,2]
[343495669,1732671040584,-221.37516081,0.00027048,2]
[343495671,1732671040594,-6076.461413,0.00027213,2]
[343495673,1732671040604,-500.0,0.00027367,2]
[343495675,1732671040614,-500.0,0.00027396,2]
[343495677,1732671040623,-500.0,0.00027396,2]
[343495678,1732671040633,-638.1054446,0.00027396,2]
[343495680,1732671040645,-502.15500485,0.00027396,2]
[343495681,1732671040655,-502.04686538,0.00027396,2]
[343495682,1732671040665,-500.0,0.00027396,2]
[343495683,1732671040675,-500.0,0.00027396,2]
[343495684,1732671040686,-500.0,0.00027396,2]
[343495685,1732671040695,-218.99012718,0.00027396,2]
[343495686,1732671040706,-501.16693255,0.00027396,2]
[343495687,1732671040716,-500.0,0.00027396,2]
[343495688,1732671040725,-500.0,0.00027396,2]
[343495689,1732671040738,-500.0,0.00027396,2]
[343495690,1732671040748,-500.0,0.00027396,2]
[343495691,1732671040757,-297.0768094,0.00027396,2]
[343495692,1732671040767,-500.0,0.00027396,2]
[343495693,1732671040777,-500.0,0.00027396,2]
[343495694,1732671040787,-500.0,0.00027396,2]
[343495695,1732671040797,-500.0,0.00027396,2]
[343495696,1732671040807,-500.0,0.00027396,2]
[343495697,1732671040817,-500.0,0.00027396,2]
[343495698,1732671040827,-338.66042897,0.00027396,2]
[343495699,1732671040837,-500.0,0.00027396,2]
[343495700,1732671040847,-500.0,0.00027396,2]
[343495701,1732671040856,-500.0,0.00027396,2]
[343495702,1732671040866,-500.0,0.00027396,2]
[343495703,1732671040876,-500.0,0.00027396,2]
[343495704,1732671040887,-500.0,0.00027396,2]
[343495705,1732671040897,-500.0,0.00027396,2]
[343495706,1732671040908,-500.0,0.00027396,2]
[343495707,1732671040918,-500.0,0.00027396,2]
[343495708,1732671040928,-500.0,0.00027396,2]
[343495709,1732671040938,-500.0,0.00027396,2]
[343495710,1732671040948,-500.0,0.00027396,2]
[343495711,1732671040959,-500.0,0.00027396,2]